lending/lending_fUSD_20250315
["ID","MTS","AMOUNT","RATE_DAILY","PERIOD"]
[356175297,1742019040402,-151.0,0.000198,7]
[356175299,1742019040412,-151.0,0.000198,7]
[356175300,1742019040423,-151.0,0.000198,7]
[356175301,1742019040433,-151.0,0.000198,7]
[356175302,1742019040442,-151.0,0.000198,7]
[356175303,1742019040451,-151.0,0.000198,7]
[356175304,1742019040461,-151.0,0.000198,2]
[356175305,1742019040470,-25000.0,0.000198,2]
[356175306,1742019040479,-180.41359781,0.0001982,10]
[356175307,1742019040489,-1125.25,0.00019821,2]
[356175308,1742019040498,-151.0,0.00019821,2]
[356175309,1742019040507,-151.0,0.00019821,2]
[356175310,1742019040517,-151.0,0.00019821,2]
[356175311,1742019040529,-151.0,0.00019821,2]
[356175312,1742019040539,-151.0,0.00019821,2]
[356175313,1742019040549,-151.328399,0.00019821,2]
[356175314,1742019040558,-151.0,0.00019821,2]
[356175315,1742019040568,-151.0,0.00019821,2]
[356175316,1742019040577,-151.0,0.00019821,2]
[356175317,1742019040587,-151.0,0.00019821,2]
[356175318,1742019040597,-192.700407,0.00019821,2]
[356175319,1742019040606,-192.700407,0.00019821,2]
[356175320,1742019040616,-151.0,0.00019821,2]
[356175321,1742019040625,-151.0,0.00019821,2]
[356175322,1742019040635,-151.0,0.00019821,2]
[356175323,1742019040644,-987.226906,0.00019821,2]
[356175324,1742019040654,-987.226906,0.00019821,2]
[356175325,1742019040663,-150.0,0.00019865,2]
[356175326,1742019040672,-150.92,0.0001987,2]
[356175327,1742019040682,-150.92,0.0001987,2]
[356175328,1742019040691,-150.92,0.0001987,2]
[356175329,1742019040700,-150.92,0.0001987,2]
[356175330,1742019040710,-150.92,0.0001987,2]
[356175331,1742019040719,-150.92,0.0001987,2]
[356175332,1742019040728,-150.92,0.0001987,2]
[356175333,1742019040738,-150.92,0.0001987,2]
[356175334,1742019040747,-150.92,0.0001987,2]
[356175335,1742019040757,-150.92,0.0001987,2]
[356175336,1742019040766,-150.92,0.0001987,2]
[356175337,1742019040776,-150.92,0.0001987,2]
[356175338,1742019040785,-150.92,0.0001987,2]
[356175339,1742019040794,-151.29964196,0.00019873,2]
[356175340,1742019040804,-500.0,0.00019873,2]
[356175341,1742019040813,-500.0,0.00019873,2]
[356175342,1742019040822,-508.73942234,0.00019873,2]
[356175343,1742019040832,-150.92,0.00019874,2]
[356175344,1742019040841,-150.0,0.00019879,2]
[356175345,1742019040851,-983.0,0.0001988,2]
[356175346,1742019040861,-1106790.71060624,0.0001988,2]
[356175347,1742019040870,-336351.97663023,0.0001988,2]
[356175348,1742019040880,-131987.17643075,0.0001988,2]
[356175349,1742019040889,-151.578349,0.0001988,2]
[356175350,1742019040899,-151.175064,0.0001988,2]
[356175351,1742019040908,-151.0,0.0001988,2]
[356175352,1742019040918,-151.0,0.0001988,2]
[356175353,1742019040927,-151.0,0.0001988,2]
[356175354,1742019040936,-151.0,0.0001988,2]
[356175355,1742019040945,-291.055362,0.0001988,2]
[356175356,1742019040954,-151.0,0.0001988,2]
[356175357,1742019040963,-151.598431,0.0001988,2]
[356175358,1742019040973,-151.0,0.0001988,2]
[356175359,1742019040982,-151.63549,0.0001988,2]
[356175360,1742019040992,-151.0,0.0001988,2]
[356175361,1742019041001,-151.0,0.0001988,2]
[356175362,1742019041011,-151.0,0.0001988,2]
[356175363,1742019041022,-151.0,0.0001988,2]
[356175364,1742019041032,-151.0,0.0001988,2]
[356175365,1742019041041,-152.948188,0.0001988,2]
[356175366,1742019041051,-150.0,0.0001988,2]
[356175367,1742019041061,-150.0,0.0001988,2]
[356175368,1742019041071,-562.20312898,0.0001988,2]
[356175369,1742019041080,-151.0,0.0001988,2]
[356175370,1742019041090,-150.0,0.0001988,2]
[356175371,1742019041099,-152.894808,0.0001988,2]
[356175372,1742019041108,-150.0,0.0001988,2]
[356175373,1742019041118,-151.0,0.0001988,2]
[356175374,1742019041127,-5472.0414136,0.0001988,2]
[356175375,1742019041136,-151.0,0.0001988,2]
[356175376,1742019041146,-152.02459,0.0001988,2]
[356175377,1742019041155,-2701.19303047,0.0001988,2]
[356175378,1742019041163,-151.0,0.0001988,2]
[356175379,1742019041178,-151.0,0.0001988,2]
[356175380,1742019041187,-21073.21106396,0.0001988,2]
[356175381,1742019041197,-200.0,0.0001988,2]
[356175382,1742019041214,-151.0,0.0001988,2]
[356175383,1742019041223,-237.247241,0.0001988,2]
[356175384,1742019041233,-156.0,0.0001988,2]
[356175385,1742019041243,-156.0,0.0001988,2]
[356175386,1742019041252,-156.0,0.0001988,2]
[356175387,1742019041263,-184.00606239,0.0001988,2]
[356175388,1742019041272,-151.0,0.0001988,2]
[356175389,1742019041281,-152.695786,0.0001988,2]
[356175390,1742019041291,-151.0,0.0001988,2]
[356175391,1742019041301,-151.0,0.0001988,2]
[356175392,1742019041310,-151.0,0.0001988,2]
[356175393,1742019041319,-151.0,0.0001988,2]
[356175394,1742019041329,-151.0,0.0001988,2]
[356175395,1742019041338,-151.731506,0.0001988,2]
[356175396,1742019041348,-151.0,0.0001988,2]
[356175397,1742019041357,-151.0,0.0001988,2]
[356175398,1742019041367,-151.0,0.0001988,2]
[356175399,1742019041376,-151.0,0.0001988,2]
[356175400,1742019041386,-151.0,0.0001988,2]
[356175401,1742019041395,-151.0,0.0001988,2]
[356175402,1742019041404,-151.0,0.0001988,2]
[356175403,1742019041414,-151.0,0.0001988,2]
[356175404,1742019041424,-151.0,0.0001988,2]
[356175405,1742019041434,-151.0,0.0001988,2]
[356175406,1742019041443,-151.0,0.0001988,2]
[356175407,1742019041453,-185.262335,0.0001988,2]
[356175408,1742019041463,-151.0,0.0001988,2]
[356175409,1742019041473,-151.0,0.0001988,2]
[356175410,1742019041483,-151.0,0.0001988,2]
[356175411,1742019041492,-151.385992,0.0001988,2]
[356175412,1742019041501,-151.0,0.0001988,2]
[356175413,1742019041511,-151.0,0.0001988,2]
[356175414,1742019041520,-151.0,0.0001988,2]
[356175415,1742019041530,-151.0,0.0001988,2]
[356175416,1742019041539,-151.0,0.0001988,2]
[356175417,1742019041548,-151.587135,0.0001988,2]
[356175418,1742019041558,-151.0,0.0001988,2]
[356175419,1742019041567,-244.243167,0.0001988,2]
[356175420,1742019041577,-151.0,0.0001988,2]
[356175421,1742019041586,-151.0,0.0001988,2]
[356175422,1742019041597,-151.0,0.0001988,2]
[356175423,1742019041606,-151.0,0.0001988,2]
[356175424,1742019041615,-151.0,0.0001988,2]
[356175425,1742019041625,-154.057195,0.0001988,2]
[356175426,1742019041634,-151.0,0.0001988,2]
[356175427,1742019041643,-151.0,0.0001988,2]
[356175428,1742019041654,-151.0,0.0001988,2]
[356175429,1742019041663,-151.0,0.0001988,2]
[356175430,1742019041672,-151.995954,0.0001988,2]
[356175431,1742019041682,-151.0,0.0001988,2]
[356175432,1742019041691,-151.0,0.0001988,2]
[356175433,1742019041702,-153.73414,0.0001988,2]
[356175434,1742019041712,-150.0,0.0001988,2]
[356175435,1742019041721,-4470.16522917,0.0001988,2]
[356175436,1742019041731,-152.850833,0.0001988,2]
[356175437,1742019041740,-151.0,0.0001988,2]
[356175438,1742019041750,-151.0,0.0001988,2]
[356175439,1742019041760,-151.46832,0.0001988,2]
[356175440,1742019041769,-151.0,0.0001988,2]
[356175441,1742019041780,-151.0,0.0001988,2]
[356175442,1742019041791,-151.645537,0.0001988,2]
[356175443,1742019041800,-151.0,0.0001988,2]
[356175444,1742019041810,-151.0,0.0001988,2]
[356175445,1742019041819,-152.852547,0.0001988,2]
[356175446,1742019041829,-151.0,0.0001988,2]
[356175447,1742019041839,-151.0,0.0001988,2]
[356175448,1742019041848,-151.0,0.0001988,2]
[356175449,1742019041859,-151.0,0.0001988,2]
[356175450,1742019041869,-151.0,0.0001988,2]
[356175451,1742019041879,-151.0,0.0001988,2]
[356175452,1742019041888,-151.0,0.0001988,2]
[356175453,1742019041898,-151.0,0.0001988,2]
[356175454,1742019041907,-151.0,0.0001988,2]
[356175455,1742019041916,-151.0,0.0001988,2]
[356175456,1742019041926,-151.0,0.0001988,2]
[356175457,1742019041936,-151.0,0.0001988,2]
[356175458,1742019041946,-158.088504,0.0001988,2]
[356175459,1742019041955,-158.088504,0.0001988,2]
[356175460,1742019041965,-158.088504,0.0001988,2]
[356175461,1742019041975,-158.088504,0.0001988,2]
[356175462,1742019041984,-158.088504,0.0001988,2]
[356175463,1742019041994,-158.088504,0.0001988,2]
[356175464,1742019042004,-151.0,0.0001988,2]
[356175465,1742019042216,-151.0,0.0001988,2]
[356175466,1742019042245,-151.0,0.0001988,2]
[356175467,1742019042256,-151.0,0.0001988,2]
[356175468,1742019042267,-151.0,0.0001988,2]
[356175469,1742019042277,-151.0,0.0001988,2]
[356175470,1742019042287,-151.0,0.0001988,2]
[356175471,1742019042297,-151.0,0.0001988,2]
[356175472,1742019042307,-153.665348,0.0001988,2]
[356175473,1742019042318,-151.0,0.0001988,2]
[356175474,1742019042329,-151.0,0.0001988,2]
[356175475,1742019042338,-151.0,0.0001988,2]
[356175476,1742019042348,-151.0,0.0001988,2]
[356175477,1742019042358,-151.0,0.0001988,2]
[356175478,1742019042367,-151.0,0.0001988,2]
[356175479,1742019042377,-151.0,0.0001988,2]
[356175480,1742019042387,-151.505875,0.0001988,2]
[356175481,1742019042396,-151.0,0.0001988,2]
[356175482,1742019042406,-151.0,0.0001988,2]
[356175483,1742019042415,-151.0,0.0001988,2]
[356175484,1742019042426,-151.0,0.0001988,2]
[356175485,1742019042435,-158.632059,0.0001988,2]
[356175486,1742019042445,-151.0,0.0001988,2]
[356175487,1742019042454,-154.389977,0.0001988,2]
[356175488,1742019042464,-151.0,0.0001988,2]
[356175489,1742019042474,-151.0,0.0001988,2]
[356175490,1742019042484,-151.0,0.0001988,2]
[356175491,1742019042494,-216.878744,0.0001988,2]
[356175492,1742019042505,-165.382399,0.0001988,2]
[356175493,1742019042515,-165.382399,0.0001988,2]
[356175494,1742019042525,-165.382399,0.0001988,2]
[356175495,1742019042535,-165.382399,0.0001988,2]
[356175496,1742019042545,-165.382399,0.0001988,2]
[356175497,1742019042555,-165.382399,0.0001988,2]
[356175499,1742019042565,-151.0,0.0001988,2]
[356175501,1742019042574,-151.0,0.0001988,2]
[356175502,1742019042583,-151.623575,0.0001988,2]
[356175504,1742019042593,-151.0,0.0001988,2]
[356175506,1742019042603,-151.0,0.0001988,2]
[356175508,1742019042613,-151.0,0.0001988,2]
[356175509,1742019042622,-151.0,0.0001988,2]
[356175510,1742019042632,-151.0,0.0001988,2]
[356175511,1742019042642,-151.0,0.0001988,2]
[356175512,1742019042652,-151.0,0.0001988,2]
[356175513,1742019042661,-151.0,0.0001988,2]
[356175516,1742019042671,-153.482865,0.0001988,2]
[356175519,1742019042681,-154.218171,0.0001988,2]
[356175522,1742019042690,-151.524708,0.0001988,2]
[356175525,1742019042700,-151.0,0.0001988,2]
[356175527,1742019042709,-151.0,0.0001988,2]
[356175528,1742019042719,-152.287768,0.0001988,2]
[356175529,1742019042728,-210.709966,0.0001988,2]
[356175530,1742019042738,-210.709966,0.0001988,2]
[356175531,1742019042748,-210.709966,0.0001988,2]
[356175532,1742019042757,-210.709966,0.0001988,2]
[356175534,1742019042769,-210.709966,0.0001988,2]
[356175536,1742019042779,-210.709966,0.0001988,2]
[356175538,1742019042790,-210.709966,0.0001988,2]
[356175539,1742019042799,-210.709966,0.0001988,2]
[356175540,1742019042809,-151.0,0.0001988,2]
[356175541,1742019042818,-151.0,0.0001988,2]
[356175542,1742019042828,-204.58081,0.0001988,2]
[356175543,1742019042837,-151.0,0.0001988,2]
[356175544,1742019042847,-151.0,0.0001988,2]
[356175545,1742019042857,-151.0,0.0001988,2]
[356175546,1742019042867,-151.0,0.0001988,2]
[356175547,1742019042876,-151.0,0.0001988,2]
[356175548,1742019042886,-151.0,0.0001988,2]
[356175549,1742019042896,-151.0,0.0001988,2]
[356175550,1742019042906,-152.292618,0.0001988,2]
[356175551,1742019042915,-170.663605,0.0001988,2]
[356175552,1742019042925,-151.0,0.0001988,2]
[356175553,1742019042934,-151.0,0.0001988,2]
[356175554,1742019042944,-151.0,0.0001988,2]
[356175555,1742019042956,-154.35618,0.0001988,2]
[356175556,1742019042966,-152.063764,0.0001988,2]
[356175557,1742019042976,-151.0,0.0001988,2]
[356175558,1742019042988,-151.0,0.0001988,2]
[356175559,1742019042998,-151.0,0.0001988,2]
[356175560,1742019043008,-151.0,0.0001988,2]
[356175561,1742019043018,-151.0,0.0001988,2]
[356175562,1742019043029,-193.84,0.0001988,2]
[356175563,1742019043038,-151.39072,0.0001988,2]
[356175564,1742019043048,-151.0,0.0001988,2]
[356175565,1742019043058,-154.437212,0.0001988,2]
[356175566,1742019043067,-151.0,0.0001988,2]
[356175567,1742019043077,-151.0,0.0001988,2]
[356175568,1742019043086,-151.0,0.0001988,2]
[356175569,1742019043096,-151.0,0.0001988,2]
[356175570,1742019043105,-151.0,0.0001988,2]
[356175571,1742019043115,-176.23061,0.0001988,2]
[356175572,1742019043124,-151.0,0.0001988,2]
[356175573,1742019043134,-151.0,0.0001988,2]
[356175574,1742019043144,-151.0,0.0001988,2]
[356175575,1742019043154,-151.0,0.0001988,2]
[356175576,1742019043164,-151.0,0.0001988,2]
[356175577,1742019043177,-151.0,0.0001988,2]
[356175579,1742019043187,-152.757446,0.0001988,2]
[356175580,1742019043196,-288.393444,0.0001988,2]
[356175581,1742019043206,-192.700407,0.0001988,2]
[356175582,1742019043218,-192.700407,0.0001988,2]
[356175583,1742019043227,-192.700407,0.0001988,2]
[356175584,1742019043237,-192.700407,0.0001988,2]
[356175585,1742019043246,-192.700407,0.0001988,2]
[356175586,1742019043257,-192.700407,0.0001988,2]
[356175587,1742019043267,-151.0,0.0001988,2]
[356175588,1742019043277,-151.0,0.0001988,2]
[356175589,1742019043287,-153.187011,0.0001988,2]
[356175590,1742019043297,-151.0,0.0001988,2]
[356175591,1742019043306,-151.0,0.0001988,2]
[356175593,1742019043316,-152.984281,0.0001988,2]
[356175594,1742019043325,-151.0,0.0001988,2]
[356175595,1742019043335,-151.0,0.0001988,2]
[356175596,1742019043344,-151.0,0.0001988,2]
[356175597,1742019043354,-151.0,0.0001988,2]
[356175599,1742019043363,-151.590682,0.0001988,2]
[356175601,1742019043373,-987.226906,0.0001988,2]
[356175603,1742019043382,-987.226906,0.0001988,2]
[356175605,1742019043392,-987.226906,0.0001988,2]
[356175607,1742019043401,-987.226906,0.0001988,2]
[356175609,1742019043411,-987.226906,0.0001988,2]
[356175610,1742019043421,-987.226906,0.0001988,2]
[356175611,1742019043430,-151.0,0.00019883,2]
[356175612,1742019043439,-157.342913,0.00019883,2]
[356175613,1742019043449,-151.0,0.00019883,2]
[356175614,1742019043458,-151.0,0.00019883,2]
[356175615,1742019043467,-151.0,0.00019883,2]
[356175616,1742019043477,-151.0,0.00019883,2]
[356175617,1742019043486,-151.0,0.00019883,2]
[356175618,1742019043496,-6918.9780154,0.00019884,2]
[356175619,1742019043506,-151.0,0.00019884,2]
[356175620,1742019043515,-158.088504,0.00019884,2]
[356175621,1742019043524,-158.088504,0.00019884,2]
[356175622,1742019043534,-151.0,0.00019884,2]
[356175623,1742019043544,-151.831689,0.00019884,2]
[356175624,1742019043553,-6829.4331368,0.00019884,2]
[356175625,1742019043562,-151.0,0.00019884,2]
[356175626,1742019043572,-254.10148,0.00019884,2]
[356175627,1742019043582,-201.070293,0.00019884,2]
[356175628,1742019043592,-674.4955425,0.00019884,2]
[356175629,1742019043601,-151.0,0.00019884,2]
[356175630,1742019043611,-834.8714735,0.00019884,2]
[356175631,1742019043621,-165.382399,0.00019884,2]
[356175632,1742019043630,-165.382399,0.00019884,2]
[356175633,1742019043640,-151.0,0.00019884,2]
[356175634,1742019043649,-151.0,0.00019884,2]
[356175635,1742019043659,-1322.3397599,0.00019884,2]
[356175636,1742019043669,-210.709966,0.00019884,2]
[356175637,1742019043679,-210.709966,0.00019884,2]
[356175638,1742019043689,-153.582922,0.00019884,2]
[356175639,1742019043699,-151.0,0.00019884,2]
[356175640,1742019043708,-151.0,0.00019884,2]
[356175641,1742019043717,-151.0,0.00019884,2]
[356175642,1742019043727,-192.700407,0.00019884,2]
[356175643,1742019043737,-192.700407,0.00019884,2]
[356175644,1742019043747,-987.226906,0.00019884,2]
[356175645,1742019043756,-987.226906,0.00019884,2]
[356175646,1742019043766,-17499.1566362,0.00019898,2]
[356175647,1742019043775,-150.0,0.00019911,2]
[356175648,1742019043785,-835.51,0.00019967,2]
[356175649,1742019043794,-4898.0,0.00019973,2]
[356175650,1742019043804,-500.0,0.00019973,2]
[356175651,1742019043814,-245.15452007,0.00019973,2]
[356175652,1742019043823,-500.0,0.00019973,2]
[356175653,1742019043834,-500.0,0.00019973,2]
[356175654,1742019043843,-500.0,0.00019973,2]
[356175655,1742019043853,-151.0,0.00019973,2]
[356175656,1742019043862,-151.0,0.00019973,2]
[356175657,1742019043872,-150.92,0.0001999,2]
[356175658,1742019043882,-150.0,0.0002,2]
[356175659,1742019043891,-5877.22442385,0.0002,2]
[356175660,1742019043900,-9244.5907975,0.0002,2]
[356175661,1742019043911,-4297.21424114,0.0002,30]
[356175662,1742019043920,-1520.68007549,0.0002,30]
[356175663,1742019043930,-247.4151673,0.0002,30]
[356175664,1742019043939,-10449.16228517,0.0002,2]
[356175665,1742019043949,-9660.0,0.0002,7]
[356175666,1742019043959,-31433.3990771,0.0002,10]
[356175667,1742019043968,-2106.0,0.0002,2]
[356175668,1742019043979,-2000.0,0.0002,2]
[356175669,1742019043989,-2000.0,0.0002,2]
[356175670,1742019043999,-2000.0,0.0002,2]
[356175671,1742019044009,-151.0,0.0002,2]
[356175672,1742019044019,-150.0,0.0002,2]
[356175673,1742019044028,-151.0,0.0002,2]
[356175674,1742019044037,-151.0,0.0002,2]
[356175675,1742019044047,-100000.0,0.0002,2]
[356175676,1742019044056,-151.614904,0.0002,2]
[356175677,1742019044065,-151.0,0.0002,2]
[356175678,1742019044075,-151.0,0.0002,2]
[356175679,1742019044085,-151.0,0.0002,2]
[356175680,1742019044095,-151.0,0.0002,2]
[356175681,1742019044105,-151.0,0.0002,2]
[356175682,1742019044115,-268.602256,0.0002,2]
[356175683,1742019044125,-151.0,0.0002,2]
[356175684,1742019044135,-191.084149,0.0002,2]
[356175685,1742019044144,-151.0,0.0002,2]
[356175686,1742019044154,-151.0,0.0002,2]
[356175687,1742019044163,-151.0,0.0002,2]
[356175688,1742019044174,-151.0,0.0002,2]
[356175689,1742019044186,-151.591052,0.0002,2]
[356175690,1742019044195,-151.0,0.0002,2]
[356175691,1742019044205,-151.0,0.0002,2]
[356175692,1742019044215,-151.0,0.0002,2]
[356175693,1742019044225,-151.0,0.0002,2]
[356175694,1742019044234,-152.032728,0.0002,2]
[356175695,1742019044243,-151.0,0.0002,2]
[356175696,1742019044255,-151.0,0.0002,2]
[356175697,1742019044264,-158.088504,0.0002,2]
[356175698,1742019044274,-158.088504,0.0002,2]
[356175699,1742019044283,-158.088504,0.0002,2]
[356175700,1742019044293,-158.088504,0.0002,2]
[356175701,1742019044303,-151.0,0.0002,2]
[356175702,1742019044313,-151.0,0.0002,2]
[356175703,1742019044322,-151.0,0.0002,2]
[356175704,1742019044332,-151.0,0.0002,2]
[356175705,1742019044342,-151.0,0.0002,2]
[356175706,1742019044351,-151.0,0.0002,2]
[356175707,1742019044361,-165.382399,0.0002,2]
[356175708,1742019044370,-165.382399,0.0002,2]
[356175709,1742019044379,-165.382399,0.0002,2]
[356175710,1742019044388,-165.382399,0.0002,2]
[356175711,1742019044397,-151.0,0.0002,2]
[356175712,1742019044408,-151.0,0.0002,2]
[356175713,1742019044419,-151.0,0.0002,2]
[356175714,1742019044430,-151.0,0.0002,2]
[356175715,1742019044440,-210.709966,0.0002,2]
[356175716,1742019044451,-210.709966,0.0002,2]
[356175717,1742019044461,-210.709966,0.0002,2]
[356175718,1742019044470,-210.709966,0.0002,2]
[356175719,1742019044480,-500.0,0.0002,2]
[356175720,1742019044489,-151.0,0.0002,2]
[356175721,1742019044499,-151.0,0.0002,2]
[356175722,1742019044508,-151.0,0.0002,2]
[356175723,1742019044518,-151.0,0.0002,2]
[356175724,1742019044528,-151.0,0.0002,2]
[356175725,1742019044538,-151.0,0.0002,2]
[356175726,1742019044548,-500.0,0.0002,2]
[356175727,1742019044557,-150.0,0.0002,2]
[356175728,1742019044566,-500.0,0.0002,2]
[356175729,1742019044575,-150.0,0.0002,2]
[356175730,1742019044584,-500.0,0.0002,2]
[356175731,1742019044594,-2000.0,0.0002,2]
[356175732,1742019044604,-2000.0,0.0002,2]
[356175733,1742019044613,-2000.0,0.0002,2]
[356175734,1742019044622,-2000.0,0.0002,2]
[356175735,1742019044632,-1310.356243,0.0002,2]
[356175736,1742019044642,-192.700407,0.0002,2]
[356175737,1742019044651,-192.700407,0.0002,2]
[356175738,1742019044661,-192.700407,0.0002,2]
[356175739,1742019044671,-192.700407,0.0002,2]
[356175740,1742019044680,-987.226906,0.0002,2]
[356175741,1742019044747,-987.226906,0.0002,2]
[356175742,1742019044757,-987.226906,0.0002,2]
[356175743,1742019044766,-987.226906,0.0002,2]
[356175744,1742019044777,-37986.40489268,0.0002001,8]
[356175745,1742019044786,-500.0,0.00020027,2]
[356175746,1742019044796,-500.0,0.00020027,2]
[356175747,1742019044805,-500.0,0.00020027,2]
[356175748,1742019044814,-500.0,0.00020027,2]
[356175749,1742019044824,-500.0,0.00020055,2]
[356175750,1742019044833,-500.0,0.00020055,2]
[356175751,1742019044843,-500.0,0.00020055,2]
[356175752,1742019044852,-500.0,0.00020055,2]
[356175753,1742019044861,-200.0,0.00020079,2]
[356175754,1742019044871,-500.0,0.00020082,2]
[356175755,1742019044879,-928.02644158,0.00020082,2]
[356175756,1742019044889,-500.0,0.00020082,2]
[356175757,1742019044898,-935.97788374,0.00020082,2]
[356175758,1742019044907,-733.88894051,0.0002011,2]
[356175759,1742019044917,-500.0,0.0002011,2]
[356175760,1742019044926,-646.90207209,0.00020137,2]
[356175761,1742019044936,-4877.0,0.00020274,2]
[356175762,1742019044945,-210.709966,0.00020274,2]
[356175763,1742019044955,-210.709966,0.00020274,2]
[356175764,1742019044964,-151.0,0.00020274,2]
[356175765,1742019044974,-151.0,0.00020274,2]
[356175766,1742019044983,-151.0,0.00020274,2]
[356175767,1742019044994,-192.700407,0.00020274,2]
[356175768,1742019045004,-192.700407,0.00020274,2]
[356175769,1742019045013,-987.226906,0.00020274,2]
[356175770,1742019045022,-987.226906,0.00020274,2]
[356175771,1742019045032,-5568.6293359,0.00020286,2]
[356175772,1742019045041,-151.0,0.00020286,2]
[356175773,1742019045050,-158.088504,0.00020286,2]
[356175774,1742019045060,-158.088504,0.00020286,2]
[356175775,1742019045069,-151.0,0.00020286,2]
[356175776,1742019045078,-5496.5605656,0.00020286,2]
[356175777,1742019045088,-151.0,0.00020286,2]
[356175778,1742019045097,-674.4955425,0.00020286,2]
[356175779,1742019045107,-151.0,0.00020286,2]
[356175780,1742019045117,-834.8714735,0.00020286,2]
[356175781,1742019045126,-165.382399,0.00020286,2]
[356175782,1742019045135,-165.382399,0.00020286,2]
[356175783,1742019045144,-151.0,0.00020286,2]
[356175784,1742019045154,-151.0,0.00020286,2]
[356175785,1742019045163,-1322.3397599,0.00020286,2]
[356175786,1742019045173,-14084.6520715,0.00020286,2]
[356175787,1742019045185,-960.14,0.00020299,2]
[356175788,1742019045194,-94395.86036449,0.000203,2]
[356175789,1742019045203,-151.0,0.000203,2]
[356175790,1742019045212,-151.0,0.000203,2]
[356175791,1742019045223,-152.54516,0.000203,2]
[356175792,1742019045232,-151.0,0.000203,2]
[356175793,1742019045242,-151.0,0.000203,2]
[356175794,1742019045251,-151.0,0.000203,2]
[356175795,1742019045263,-151.0,0.000203,2]
[356175796,1742019045273,-186.557225,0.000203,2]
[356175797,1742019045282,-151.0,0.000203,2]
[356175798,1742019045292,-231.746328,0.000203,2]
[356175799,1742019045301,-158.088504,0.000203,2]
[356175800,1742019045311,-158.088504,0.000203,2]
[356175801,1742019045320,-151.0,0.000203,2]
[356175802,1742019045330,-151.0,0.000203,2]
[356175803,1742019045339,-269.786129,0.000203,2]
[356175804,1742019045349,-165.382399,0.000203,2]
[356175805,1742019045358,-165.382399,0.000203,2]
[356175806,1742019045367,-151.0,0.000203,2]
[356175807,1742019045376,-263.870048,0.000203,2]
[356175808,1742019045386,-210.709966,0.000203,2]
[356175809,1742019045396,-210.709966,0.000203,2]
[356175810,1742019045406,-151.0,0.000203,2]
[356175811,1742019045415,-151.0,0.000203,2]
[356175812,1742019045424,-176.235537,0.000203,2]
[356175813,1742019045433,-192.700407,0.000203,2]
[356175814,1742019045443,-192.70041,0.000203,2]
[356175815,1742019045452,-987.226906,0.000203,2]
[356175816,1742019045462,-987.226904,0.000203,2]
[356175817,1742019045471,-300.0,0.00020372,2]
[356175818,1742019045481,-150.0,0.00020381,2]
[356175819,1742019045491,-174.24,0.00020548,2]
[356175820,1742019045499,-960.14,0.00020573,2]
[356175821,1742019045509,-165.382399,0.00020674,2]
[356175822,1742019045519,-165.382399,0.00020674,2]